fUST/lending_fUST_20250813
["ID","MTS","AMOUNT","RATE_DAILY","PERIOD"]
[378807849,1755029444737,-207.0,0.0002866,30]
[378807851,1755029444746,-54715.53457188,0.00028673,10]
[378807852,1755029444756,-84791.94,0.000287,7]
[378807853,1755029444765,-552.0,0.00028756,14]
[378807854,1755029444774,-3929.09,0.00028767,8]
[378807855,1755029444784,-516.71381426,0.00028767,5]
[378807856,1755029444793,-595.0,0.00028768,2]
[378807857,1755029444802,-167.89426,0.000288,7]
[378807858,1755029444811,-692.96848948,0.00028818,2]
[378807859,1755029444820,-1093.08288487,0.00028818,2]
[378807860,1755029444829,-1000.0,0.0002888,15]
[378807861,1755029444838,-23009.51934145,0.00028901,2]
[378807862,1755029444848,-2000.0,0.00028975,5]
[378807863,1755029444857,-800.0,0.00028984,2]
[378807864,1755029444866,-552.0,0.00028997,14]
[378807865,1755029444875,-874.99721724,0.00029,2]
[378807866,1755029444885,-500.0,0.00029,7]
[378807867,1755029444894,-41835.0,0.00029,30]
[378807868,1755029444903,-528.03329096,0.00029,10]
[378807869,1755029444912,-19853.74274529,0.00029,60]
[378807870,1755029444921,-484.84814958,0.00029,7]
[378807871,1755029444931,-2700.0,0.00029,7]
[378807872,1755029444940,-12673.43806534,0.00029,3]
[378807873,1755029444950,-12673.43806534,0.00029,10]
[378807874,1755029444959,-232.0176383,0.00029,10]
[378807875,1755029444969,-215.52532928,0.00029,10]
[378807876,1755029444988,-160.0,0.00029,10]
[378807877,1755029444999,-160.0,0.00029,10]
[378807878,1755029445009,-160.0,0.00029,3]
[378807879,1755029445018,-216.70963917,0.00029,3]
[378807880,1755029445029,-216.70963917,0.00029,10]
[378807881,1755029445039,-160.0,0.00029,3]
[378807882,1755029445048,-160.0,0.00029,10]
[378807883,1755029445058,-528.03329096,0.00029,3]
[378807884,1755029445067,-528.03329096,0.00029,10]
[378807885,1755029445076,-843.25559725,0.00029,3]
[378807886,1755029445086,-843.25559725,0.00029,10]
[378807887,1755029445095,-417.15472785,0.00029,3]
[378807888,1755029445104,-417.15472785,0.00029,10]
[378807889,1755029445113,-500.0,0.00029008,2]
[378807890,1755029445122,-637.5642265,0.00029039,2]
[378807891,1755029445132,-11110.91078821,0.00029039,2]
[378807892,1755029445141,-1012.54,0.00029041,6]
[378807893,1755029445150,-800.0,0.00029041,2]
[378807894,1755029445162,-595.0,0.00029042,2]
[378807895,1755029445172,-1300.0,0.0002906,2]
[378807896,1755029445181,-1300.0,0.00029085,2]
[378807897,1755029445190,-150.0,0.00029113,2]
[378807898,1755029445199,-636.0,0.00029113,2]
[378807899,1755029445209,-971.0,0.00029113,2]
[378807900,1755029445218,-2151.0,0.00029113,2]
[378807901,1755029445227,-1300.0,0.00029126,2]
[378807902,1755029445238,-1100.0,0.00029128,7]
[378807903,1755029445247,-207.0,0.0002913,30]
[378807904,1755029445257,-422.92,0.00029139,30]
[378807905,1755029445266,-3012248.34135761,0.00029139,20]
[378807906,1755029445406,-9468.24634107,0.00019229,2]
[378807907,1755029445418,-531.75365894,0.00019229,2]
[378807908,1755029445428,-408.0,0.00019965,2]
[378807909,1755029445440,-160.0,0.00021427,2]
[378807910,1755029445451,-408.0,0.00022965,2]
[378807911,1755029445461,-1892.24634106,0.00029139,20]
[378807912,1755029445472,-3934.48622675,0.00029139,20]
[378807914,1755029445483,-379.2939947,0.00029139,20]
[378807917,1755029445496,-3000.4656178,0.00029139,20]
[378807922,1755029445622,-990.0,0.00029139,20]
[378807923,1755029445634,-367.38755231,0.00029139,20]
[378807925,1755029445645,-664118.35640134,0.00029139,20]
[378807926,1755029445658,-10668.48850123,0.00029139,20]
[378807927,1755029445673,-10006.57682137,0.00029139,20]
[378807928,1755029445685,-18392.79137863,0.00029139,20]
[378807929,1755029445728,-328.42957638,0.00023671,2]
[378807930,1755029445740,-698.03186395,0.00023671,2]
[378807931,1755029445751,-370.888998,0.00023671,2]
[378807932,1755029445762,-802.64956167,0.00023671,2]
[378807933,1755029445772,-408.0,0.00025965,2]
[378807934,1755029445781,-408.0,0.00028965,2]
[378807935,1755029445790,-344802.80745277,0.00029139,20]
[378807936,1755029445802,-870.4725065,0.00029139,20]
[378807938,1755029445814,-3586.14584053,0.00029139,20]
[378807939,1755029445826,-604.92249584,0.00029139,20]
[378807940,1755029445838,-24354.00130154,0.00029139,20]
[378807953,1755029446067,-417.879,0.00019965,2]
[378807955,1755029446077,-408.0,0.00022965,2]
[378807957,1755029446086,-76.0608,0.00025965,2]
[378807975,1755029446608,-331.9392,0.00025965,2]
[378807977,1755029446618,-4933.24350792,0.0002699,10]
[378807982,1755029446662,-3509.90649208,0.0002699,10]
[378807984,1755029446672,-408.0,0.00028965,2]
[378807986,1755029446682,-8033.09350792,0.00029139,20]
[378807994,1755029446770,-124786.76411434,0.00029139,20]
[378807998,1755029897713,199.050927,0.00013699,2]
[378808007,1755030481479,3813.2888261,0.00030137,120]
[378808098,1755030638526,-1960.49053435,0.000189,2]
[378808100,1755030638537,-283.9952991,0.00019178,2]
[378808102,1755030638547,-300.0,0.00019719,2]
[378808104,1755030638556,-24900.0,0.0001972,2]
[378808106,1755030638566,-448.635763,0.00019863,2]
[378808108,1755030638575,-151.0,0.00019888,2]
[378808110,1755030638584,-273.09897618,0.00019888,2]
[378808112,1755030638593,-14877.85800272,0.00019888,2]
[378808114,1755030638602,-44066.50965877,0.000199,2]
[378808116,1755030638612,-160.0,0.0002,3]
[378808118,1755030638621,-200.0,0.00020113,15]
[378808120,1755030638632,-200.0,0.00020113,15]
[378808122,1755030638641,-200.0,0.00020113,15]
[378808124,1755030638651,-200.0,0.00020113,15]
[378808126,1755030638660,-200.0,0.00020113,15]
[378808128,1755030638669,-199.050927,0.00020187,2]
[378808130,1755030638679,-843.25559725,0.00020668,2]
[378808132,1755030638688,-160.0,0.00020668,2]
[378808134,1755030638697,-160.0,0.00020668,2]
[378808135,1755030638707,-417.15472785,0.00020668,2]
[378808138,1755030638717,-528.03329096,0.00020668,2]
[378808140,1755030638726,-160.0,0.00020668,2]
[378808141,1755030638735,-417.24658652,0.00020979,2]
[378808144,1755030638744,-8959.12,0.0002098,10]
[378808145,1755030638754,-7465.94,0.0002098,10]
[378808148,1755030638763,-10750.95,0.0002099,10]
[378808149,1755030638773,-37964.89927049,0.00021,2]
[378808151,1755030638782,-971.0,0.00021094,2]
[378808153,1755030638791,-636.0,0.00021094,2]
[378808155,1755030638800,-2151.0,0.00021094,2]
[378808157,1755030638810,-434.856,0.00021094,2]
[378808159,1755030638819,-417.879,0.00021094,2]
[378808161,1755030638828,-216.70963917,0.0002146,2]
[378808163,1755030638838,-160.0,0.0002146,2]
[378808165,1755030638847,-160.0,0.0002146,2]
[378808167,1755030638858,-215.52532928,0.0002146,2]
[378808169,1755030638867,-232.0176383,0.0002146,2]
[378808171,1755030638877,-420.0,0.00021478,2]
[378808173,1755030638886,-176.18992149,0.000216,2]
[378808175,1755030638895,-417.15472785,0.00021635,10]
[378808177,1755030638905,-215.52532928,0.00021635,10]
[378808179,1755030638914,-527.84,0.00021645,3]
[378808181,1755030638923,-3274.24,0.00021654,2]
[378808183,1755030638932,-44066.50965848,0.00021655,2]
[378808186,1755030638945,-915.44,0.000217,2]
[378808188,1755030638955,-500.0,0.00021917,2]
[378808190,1755030638964,-527.86,0.0002199,3]
[378808191,1755030638973,-3119.52,0.00022,7]
[378808193,1755030638982,-33916.78,0.00022,7]
[378808195,1755030638991,-160.0,0.00022,7]
[378808197,1755030639000,-6872.94,0.00022,7]
[378808199,1755030639009,-200.0,0.00022083,15]
[378808201,1755030639018,-200.0,0.00022083,15]
[378808203,1755030639028,-200.0,0.00022083,15]
[378808205,1755030639036,-200.0,0.00022083,15]
[378808207,1755030639046,-200.0,0.00022083,15]
[378808209,1755030639055,-200.0,0.00022083,15]
[378808211,1755030639065,-200.0,0.00022083,15]
[378808213,1755030639074,-175.94,0.0002229,3]
[378808215,1755030639083,-932.0,0.000223,2]
[378808217,1755030639093,-250.0,0.000223,10]
[378808220,1755030639103,-441.419561,0.000224,10]
[378808222,1755030639113,-500.0,0.00022456,8]
[378808224,1755030639122,-500.0,0.00022476,8]
[378808226,1755030639131,-160.0,0.00023,2]
[378808228,1755030639141,-448.635763,0.00023288,2]
[378808230,1755030639150,-165.0,0.0002337,10]
[378808232,1755030639159,-587.0,0.00023394,2]
[378808234,1755030639168,-44066.50965848,0.00023409,2]
[378808235,1755030639177,-351.88,0.0002366,3]
[378808238,1755030639186,-258.20539447,0.00023763,2]
[378808239,1755030639196,-500.0,0.00023763,2]
[378808241,1755030639206,-564.82436377,0.00023791,2]
[378808244,1755030639216,-255.964,0.00023795,5]
[378808246,1755030639225,-1960.49053435,0.000239,2]
[378808248,1755030639234,-55876.76235605,0.0002399,2]
[378808250,1755030639243,-160.0,0.00024,10]
[378808252,1755030639252,-843.25559725,0.00024,10]
[378808254,1755030639261,-215.52532928,0.00024,3]
[378808256,1755030639271,-160.0,0.00024,10]
[378808258,1755030639280,-216.70963917,0.00024,7]
[378808259,1755030639292,-160.0,0.00024,7]
[378808261,1755030639301,-160.0,0.00024,10]
[378808263,1755030639311,-160.0,0.0002403,2]
[378808265,1755030639321,-971.0,0.00024094,2]
[378808267,1755030639331,-636.0,0.00024094,2]
[378808269,1755030639340,-2151.0,0.00024094,2]
[378808272,1755030639349,-408.0,0.00024094,2]
[378808273,1755030639359,-408.0,0.00024094,2]
[378808276,1755030639369,-190.01154749,0.00024099,2]
[378808277,1755030639378,-359.77743722,0.00024099,2]
[378808279,1755030639387,-33916.78,0.000241,7]
[378808281,1755030639396,-160.0,0.000241,7]
[378808283,1755030639405,-216.70963917,0.000241,7]
[378808285,1755030639414,-6872.94,0.000241,7]
[378808288,1755030639424,-160.0,0.000241,7]
[378808290,1755030639434,-200.0,0.00024246,15]
[378808292,1755030639443,-200.0,0.00024246,15]
[378808294,1755030639452,-200.0,0.00024246,15]
[378808296,1755030639461,-200.0,0.00024246,15]
[378808298,1755030639475,-200.0,0.00024246,15]
[378808300,1755030639484,-200.0,0.00024246,15]
[378808302,1755030639493,-200.0,0.00024246,15]
[378808304,1755030639502,-200.0,0.00024246,15]
[378808306,1755030639513,-358.0,0.00024246,15]
[378808308,1755030639522,-317.42164629,0.0002431,2]
[378808310,1755030639532,-3274.24,0.00024393,4]
[378808312,1755030639542,-260.0,0.00024578,2]
[378808313,1755030639553,-500.0,0.00024657,4]
[378808316,1755030639563,-200.0,0.00024658,15]
[378808318,1755030639572,-380.0,0.00024658,2]
[378808319,1755030639582,-200.0,0.0002469,11]
[378808322,1755030639591,-20254.99684151,0.000248,3]
[378808324,1755030639601,-232.0176383,0.000248,3]
[378808325,1755030639610,-215.52532928,0.000248,3]
[378808328,1755030639620,-160.0,0.000248,3]
[378808330,1755030639629,-160.0,0.000248,3]
[378808332,1755030639639,-160.0,0.000248,3]
[378808334,1755030639648,-216.70963917,0.000248,3]
[378808335,1755030639657,-160.0,0.000248,3]
[378808338,1755030639666,-1441.08613032,0.00024819,2]
[378808340,1755030639675,-20320.15,0.000249,2]
[378808342,1755030639684,-198635.64247773,0.000249,2]
[378808344,1755030639697,-57688.25794177,0.000249,2]
[378808346,1755030639709,-1577.33909433,0.000249,2]
[378808467,1755030644913,-458.45965161,0.000249,2]
[378808468,1755030644924,-4600.0,0.000249,2]
[378808519,1755030646701,-185.05427938,0.00020979,2]
[378808521,1755030646711,-465.33972072,0.0002099,10]
[378808551,1755030646975,-62.69357024,0.0002099,10]
[378808554,1755030646985,-528.03329096,0.00022,7]
[378808556,1755030646995,-500.0,0.00022456,8]
[378808558,1755030647004,-528.03329096,0.000248,3]
[378808560,1755030647013,-48432.61233756,0.000249,2]
[378809791,1755030791896,166.70033185,0.000222,69]
[378809792,1755030948503,197.893557,0.00013699,2]
[378809797,1755031333670,-261.3689068,0.00018612,2]
[378809798,1755031333698,-203.14872321,0.000188,2]
[378809799,1755031333723,-508.98702312,0.00019699,2]
[378809800,1755031333748,-199.94212665,0.00019763,2]
[378809801,1755031333774,-300.0,0.00019771,2]
[378809802,1755031333797,-300.0,0.00019771,2]
[378809803,1755031333821,-1200.0,0.00019772,2]
[378809804,1755031333848,-300.0,0.00019772,2]
[378809805,1755031333870,-300.0,0.00019772,2]
[378809806,1755031333894,-426.55322022,0.00019772,2]
[378809808,1755031637815,201.0,0.000178,2]
[378809837,1755031831952,-445.36364523,0.000188,2]
[378809839,1755031831961,-238.0,0.00018836,2]
[378809842,1755031831971,-300.0,0.00018836,2]
[378809844,1755031831980,-33.88161445,0.00018836,2]
[378809849,1755031832005,-266.11838555,0.00018836,2]
[378809851,1755031832014,-1200.0,0.00018836,2]
[378809852,1755031832024,-773.0,0.00018837,2]
[378809854,1755031832033,-300.0,0.00018837,2]
[378809856,1755031832042,-24900.0,0.00018838,2]
[378809857,1755031832051,-2146.42774123,0.000189,2]
[378809859,1755031832060,-302.69733595,0.000189,2]
[378809861,1755031832070,-231.0123172,0.0001894,2]
[378809862,1755031832079,-807.49017693,0.0001894,2]
[378809864,1755031832090,-2283.51549225,0.0001894,2]
[378809867,1755031832101,-2750.0,0.0001894,2]
[378809870,1755031832113,-805.73954663,0.0001894,2]
[378809872,1755031832123,-200.0,0.00019213,15]
[378809874,1755031832132,-200.0,0.00019213,15]
[378809877,1755031832142,-200.0,0.00019213,15]
[378809879,1755031832152,-200.0,0.00019213,15]
[378809882,1755031832161,-359.7661529,0.0001937,2]
[378809885,1755031832170,-199.94212665,0.00019763,2]
[378809887,1755031832180,-500.0,0.00019773,2]
[378809890,1755031832190,-258.20539447,0.00019773,2]
[378809894,1755031832200,-500.0,0.00019773,2]
[378809897,1755031832209,-151.0,0.00019788,2]
[378809898,1755031832218,-151.0,0.00019788,2]
[378809900,1755031832228,-151.0,0.00019788,2]
[378809901,1755031832238,-151.0,0.00019788,2]
[378809903,1755031832248,-151.28597799,0.00019788,2]
[378809906,1755031832257,-151.0,0.00019788,2]
[378809908,1755031832267,-151.0,0.00019788,2]
[378809911,1755031832276,-151.0,0.00019788,2]
[378809913,1755031832285,-151.0,0.00019788,2]
[378809915,1755031832295,-151.0,0.00019788,2]
[378809917,1755031832305,-151.0,0.00019788,2]
[378809919,1755031832314,-151.0,0.00019788,2]
[378809921,1755031832323,-151.0,0.00019788,2]
[378809923,1755031832332,-151.0,0.00019788,2]
[378809925,1755031832342,-151.0,0.00019788,2]
[378809927,1755031832352,-151.0,0.00019788,2]
[378809929,1755031832361,-151.0,0.00019788,2]
[378809931,1755031832371,-3734.68351335,0.00019788,2]
[378809963,1755031837704,-1369.77412244,0.00019788,2]
[378809970,1755031837760,-12738.06481221,0.00019788,2]
[378809972,1755031837771,-250.0,0.00019788,2]
[378809974,1755031837780,-250.0,0.00019788,2]
[378809976,1755031837789,-250.0,0.00019788,2]
[378809978,1755031837798,-185.99525166,0.00019788,2]
[378809980,1755031837808,-625.8,0.0001979,3]
[378809982,1755031837818,-850.74,0.0001979,3]
[378809984,1755031837830,-425.37,0.0001979,3]
[378809986,1755031837839,-212.69,0.0001979,3]
[378809988,1755031837849,-638.07,0.0001979,3]
[378809990,1755031837858,-561.72,0.0001979,3]
[378809992,1755031837867,-417.24658652,0.00019799,2]
[378809994,1755031837877,-28663.59418404,0.000198,2]
[378809997,1755031837897,-15682.4772903,0.000198,2]
[378810001,1755031837908,-4097.80733666,0.000198,2]
[378810004,1755031837924,-90964.72166829,0.000198,2]
[378810006,1755031837934,-160.0,0.00019823,2]
[378810008,1755031837943,-448.635764,0.00019863,2]
[378810010,1755031837952,-44385.60214395,0.000199,2]
[378810012,1755031837961,-159.98099914,0.0002,2]
[378810014,1755031837970,-160.0,0.0002,3]
[378810016,1755031837979,-197.893557,0.00020187,2]
[378810018,1755031837989,-445.36364519,0.00020248,2]
[378810020,1755031837998,-317.42164629,0.00020321,2]
[378810022,1755031838007,-1000.0,0.00020321,2]
[378810023,1755031838017,-260.0,0.00020371,2]
[378810025,1755031838026,-420.0,0.00020535,2]
[378810027,1755031838035,-3274.24,0.00020547,2]
[378810029,1755031838044,-160.0,0.00020696,2]
[378810031,1755031838053,-564.82436377,0.00020733,2]
[378810033,1755031838062,-500.0,0.00020733,2]
[378810036,1755031838072,-500.0,0.00020868,2]
[378810037,1755031838081,-500.0,0.00020914,2]
[378810039,1755031838090,-360.0,0.00020919,2]
[378810041,1755031838100,-200.0,0.00021098,15]
[378810043,1755031838109,-200.0,0.00021098,15]
[378810045,1755031838118,-200.0,0.00021098,15]
[378810047,1755031838127,-200.0,0.00021098,15]
[378810049,1755031838136,-320.0,0.00021098,15]
[378810051,1755031838146,-151.0,0.00021157,2]
[378810053,1755031838155,-497.24901194,0.00021157,2]
[378810055,1755031838165,-1251.6,0.0002116,3]
[378810057,1755031838174,-1701.48,0.0002116,3]
[378810059,1755031838183,-850.74,0.0002116,3]
[378810061,1755031838192,-425.38,0.0002116,3]
[378810064,1755031838202,-1000.0,0.00021281,2]
[378810065,1755031838211,-1000.0,0.00021462,2]
[378810067,1755031838221,-460.0,0.00021467,2]
[378810070,1755031838231,-500.0,0.00021473,2]
[378810072,1755031838240,-590.88581099,0.00021473,2]
[378810074,1755031838250,-500.0,0.00021473,2]
[378810076,1755031838261,-604.79668136,0.00021473,2]
[378810078,1755031838270,-500.0,0.00021473,2]
[378810080,1755031838279,-500.0,0.00021473,2]
[378810082,1755031838288,-500.0,0.00021473,2]
[378810084,1755031838298,-3230.95185161,0.00021489,2]
[378810086,1755031838307,-160.0,0.00021494,2]
[378810088,1755031838316,-215.52532928,0.00021494,2]
[378810090,1755031838326,-160.0,0.00021494,2]
[378810092,1755031838335,-232.0176383,0.00021494,2]
[378810094,1755031838344,-82077.91,0.000215,2]
[378810095,1755031838353,-2151.0,0.00021651,2]
[378810097,1755031838363,-636.0,0.00021651,2]
[378810099,1755031838373,-971.0,0.00021651,2]
[378810102,1755031838382,-190.01154749,0.00021654,2]
[378810103,1755031838392,-359.77743722,0.00021654,2]
[378810105,1755031838401,-44385.60214375,0.00021655,2]
[378810107,1755031838410,-445.36364519,0.00021697,2]
[378810109,1755031838419,-1500.0,0.00021829,2]
[378810111,1755031838428,-500.0,0.00021917,2]
[378810113,1755031838437,-55876.76235605,0.0002199,2]
[378810115,1755031838447,-33916.78,0.00022,7]
[378810117,1755031838457,-6560.06,0.00022,7]
[378810120,1755031838467,-2807.56,0.00022,7]
[378810122,1755031838476,-915.44,0.00022,2]
[378810124,1755031838485,-20320.15,0.00022,2]
[378810126,1755031838494,-528.03329096,0.00022,7]
[378810128,1755031838503,-417.15472785,0.00022,7]
[378810130,1755031838513,-215.52532928,0.00022,7]
[378810132,1755031838522,-160.0,0.00022,7]
[378810134,1755031838532,-560.0,0.00022015,2]
[378810135,1755031838542,-591.6405598,0.00022021,2]
[378810137,1755031838551,-1000.0,0.00022021,2]
[378810139,1755031838560,-1000.0,0.00022021,2]
[378810141,1755031838569,-1000.0,0.00022021,2]
[378810143,1755031838578,-1000.0,0.00022021,2]
[378810145,1755031838587,-932.0,0.000223,2]
[378810148,1755031838597,-250.0,0.000223,10]
[378810150,1755031838607,-2000.0,0.00022377,2]
[378810152,1755031838617,-587.0,0.00022387,2]
[378810154,1755031838626,-441.419561,0.000224,10]
[378810156,1755031838635,-250.0,0.00022447,2]
[378810157,1755031838646,-500.0,0.00022456,8]
[378810159,1755031838655,-500.0,0.00022476,8]
[378810161,1755031838665,-660.0,0.00022563,2]
[378810163,1755031838674,-2200.0,0.00022656,2]
[378810165,1755031838684,-1272.97264715,0.00022925,2]
[378810167,1755031838693,-760.0,0.00023111,2]
[378810169,1755031838703,-445.36364519,0.00023145,2]
[378810171,1755031838712,-200.0,0.00023168,15]
[378810173,1755031838722,-200.0,0.00023168,15]
[378810176,1755031838731,-200.0,0.00023168,15]
[378810178,1755031838740,-200.0,0.00023168,15]
[378810180,1755031838749,-200.0,0.00023168,15]
[378810182,1755031838759,-200.0,0.00023168,15]
[378810184,1755031838769,-366.0,0.00023168,15]
[378810186,1755031838779,-3274.24,0.00023287,4]
[378810188,1755031838788,-448.635764,0.00023288,2]
[378810190,1755031838798,-190.94114085,0.0002337,10]
[378810191,1755031838808,-44385.60214375,0.00023409,2]
[378810192,1755031838819,-860.0,0.00023659,2]
[378810193,1755031838829,-292.849,0.0002381,5]
[378810194,1755031838839,-2146.42774123,0.000239,2]
[378810195,1755031838848,-500.0,0.00023913,2]
[378810196,1755031838857,-500.0,0.00023913,2]
[378810197,1755031838866,-20320.15,0.00024,2]
[378810198,1755031838875,-216.70963917,0.00024,7]
[378810199,1755031838884,-160.0,0.00024,7]
[378810200,1755031838894,-843.25559725,0.00024,7]
[378810201,1755031838904,-232.0176383,0.00024,7]
[378810202,1755031838914,-160.0,0.00024,7]
[378810203,1755031838923,-215.52532928,0.00024,3]
[378810204,1755031838931,-160.0,0.00024,7]
[378810205,1755031838940,-960.0,0.00024207,2]
[378810206,1755031838950,-2807.56,0.000243,7]
[378810207,1755031838965,-823.0,0.00024405,2]
[378810208,1755031838984,-562.49809899,0.0002446,2]
[378810209,1755031839003,-445.36364519,0.00024593,2]
[378810211,1755031839022,-2151.0,0.00024651,2]
[378810212,1755031839031,-636.0,0.00024651,2]
[378810213,1755031839040,-971.0,0.00024651,2]
[378810215,1755031839049,-500.0,0.00024657,4]
[378810217,1755031839059,-200.0,0.00024658,15]
[378810219,1755031839068,-380.0,0.00024658,2]
[378810221,1755031839077,-33916.78,0.000247,7]
[378810223,1755031839086,-6560.06,0.000247,7]
[378810225,1755031839095,-216.70963917,0.000247,7]
[378810227,1755031839104,-160.0,0.000247,7]
[378810229,1755031839113,-528.03329096,0.000247,7]
[378810231,1755031839123,-843.25559725,0.000247,7]
[378810233,1755031839132,-417.15472785,0.000247,7]
[378810235,1755031839142,-232.0176383,0.000247,7]
[378810237,1755031839151,-215.52532928,0.000247,7]
[378810239,1755031839160,-160.0,0.000247,7]
[378810241,1755031839169,-160.0,0.000247,7]
[378810243,1755031839179,-1060.0,0.00024755,2]
[378810245,1755031839188,-20254.99684151,0.000248,3]
[378810247,1755031839198,-216.70963917,0.000248,3]
[378810249,1755031839207,-160.0,0.000248,3]
[378810251,1755031839216,-528.03329096,0.000248,3]
[378810253,1755031839226,-843.25559725,0.000248,3]
[378810255,1755031839235,-160.0,0.000248,3]
[378810257,1755031839244,-417.15472785,0.000248,3]
[378810259,1755031839255,-232.0176383,0.000248,3]
[378810261,1755031839264,-160.0,0.000248,3]
[378810264,1755031839273,-215.52532928,0.000248,3]
[378810266,1755031839282,-160.0,0.000248,3]
[378810268,1755031839291,-160.0,0.000248,3]
[378810270,1755031839301,-160.0,0.000248,3]
[378810272,1755031839310,-160.0,0.00024818,2]
[378810274,1755031839319,-199.94212665,0.00024823,2]
[378810277,1755031839328,-160.0,0.0002484,2]
[378810279,1755031839338,-160.0,0.00024842,2]
[378810281,1755031839347,-417.15472785,0.00024842,2]
[378810283,1755031839357,-528.03329096,0.00024842,2]
[378810285,1755031839366,-843.25559725,0.00024842,2]
[378810287,1755031839376,-160.0,0.00024842,2]
[378810289,1755031839385,-160.0,0.00024842,2]
[378810291,1755031839395,-461.76100612,0.00024842,2]
[378810293,1755031839404,-216.70963917,0.00024842,2]
[378810295,1755031839414,-160.0,0.00024859,2]
[378810296,1755031839424,-500.0,0.00024873,2]
[378810298,1755031839433,-500.0,0.00024873,2]
[378810300,1755031839443,-505.53108855,0.00024873,2]
[378810302,1755031839452,-500.0,0.00024873,2]
[378810304,1755031839461,-500.0,0.00024873,2]
[378810306,1755031839471,-500.0,0.00024873,2]
[378810308,1755031839481,-500.0,0.00024873,2]
[378810310,1755031839490,-500.0,0.00024873,2]
[378810312,1755031839500,-500.0,0.00024873,2]
[378810314,1755031839509,-500.0,0.00024873,2]
[378810316,1755031839518,-500.0,0.00024873,2]
[378810318,1755031839528,-500.0,0.00024873,2]
[378810335,1755031839674,-165.11377929,0.00024873,2]
[378810337,1755031839684,-500.0,0.00024873,2]
[378810339,1755031839693,-1281.36013797,0.000249,2]
[378810340,1755031839703,-1760.0,0.000249,3]
[378810343,1755031839712,-1760.0,0.000249,3]
[378810345,1755031839721,-1760.0,0.000249,3]
[378810347,1755031839731,-1760.0,0.000249,3]
[378810349,1755031839741,-1760.0,0.000249,3]
[378810351,1755031839750,-325.0,0.000249,3]
[378810353,1755031839760,-325.0,0.000249,3]
[378810355,1755031839769,-325.0,0.000249,3]
[378810357,1755031839778,-325.0,0.000249,3]
[378810359,1755031839788,-325.0,0.000249,3]
[378810361,1755031839798,-225.63494925,0.000249,3]
[378810363,1755031839806,-55028.0180311,0.000249,2]
[378810365,1755031839821,-4761.66569946,0.000249,2]
[378810367,1755031839835,-18209.3790844,0.000249,2]
[378810400,1755031840137,-160.0,0.0002484,2]
[378810402,1755031840146,-8848.25476001,0.000249,2]
[378810404,1755031840158,-2454.96186153,0.000249,2]
[378810406,1755031840169,-654.4603919,0.000249,2]
[378810409,1755031840181,-26169.09235393,0.000249,2]
[378810862,1755031844798,-600.0,0.000249,2]
[378810866,1755031844824,-468.942,0.000249,2]
[378810962,1755031845918,-6993.8964245,0.000249,2]
[378810990,1755031924050,178.104201,0.00013699,2]
[378810998,1755032863798,169.19899,0.00013699,2]
[378811045,1755033032128,-1430.95182748,0.000189,2]
[378811047,1755033032138,-300.0,0.00018923,2]
[378811049,1755033032148,-429.0,0.00018923,2]
[378811051,1755033032158,-5601.12746335,0.00018924,2]
[378811348,1755033038056,-4630.57097035,0.00018924,2]
[378811394,1755033040446,-14668.3015663,0.00018924,2]